Workbook

Sheet Следене на оценките
B1: Въведете оценките си тук
C3: Предмет | D3: Тип | E3: Описание | F3: Резултат
C4: Френски | D4: Домашна работа | E4: История на ВСВ | F4: 80%
C5: Разширено програмиране на Java | D5: Средносрочен изпит | F5: 75%
C6: Испански | D6: Домашна работа | F6: 50%
C7: Теоретична физика | D7: Домашна работа | F7: 95%
C8: Френски | D8: Домашна работа | E8: История на Първата световна война | F8: 90%
C9: Френски | D9: Домашна работа | E9: Страници 30-41 | F9: 80%
C10: Съчинение | D10: Есе | E10: Курсова работа | F10: 95%
C11: Математика 1 | D11: Домашна работа | E11: Страници 21 и 26 | F11: 80%
C12: Математика 2 | D12: Домашна работа | E12: Страници 15 и 18 | F12: 85%
C13: Математика 1 | D13: Домашна работа | E13: Страници 34-36 | F13: 80%
C14: Математика 2 | D14: Тест | F14: 95%

Sheet Вашият успех
B1: Вашият успех
C3: Общи суми
C4: ="Часове: "&SUM(таблПредмети[Кредити]) -> Часове: 24 | D4: =AVERAGE(D7:D31) -> 81% | E4: =AVERAGE(E7:E31) -> 2.71 | F4: =SUM(F7:F31) -> 2.63 | G4: =IFERROR(HLOOKUP(D4,послСреденУспех,2),"") -> B-
C6: Предмети | D6: % | E6: Общ успех | F6: Среден успех | G6: Буква | H6: Цялостно представяне
C7: =Изчисления!C6 -> Френски | D7: =Изчисления!AL6 -> 83% | E7: =Изчисления!AM6 -> 3.00 | F7: =IFERROR(E7*Настройки!D9/SUM(таблПредмети[Кредити]),"") -> 0.38 | G7: =Изчисления!AN6 -> B
C8: =Изчисления!C7 -> Теоретична физика | D8: =Изчисления!AL7 -> 95% | E8: =Изчисления!AM7 -> 4.00 | F8: =IFERROR(E8*Настройки!D10/SUM(таблПредмети[Кредити]),"") -> 0.50 | G8: =Изчисления!AN7 -> A
C9: =Изчисления!C8 -> Математика 1 | D9: =Изчисления!AL8 -> 80% | E9: =Изчисления!AM8 -> 2.67 | F9: =IFERROR(E9*Настройки!D11/SUM(таблПредмети[Кредити]),"") -> 0.45 | G9: =Изчисления!AN8 -> B-
C10: =Изчисления!C9 -> Математика 2 | D10: =Изчисления!AL9 -> 89% | E10: =Изчисления!AM9 -> 3.33 | F10: =IFERROR(E10*Настройки!D12/SUM(таблПредмети[Кредити]),"") -> 0.56 | G10: =Изчисления!AN9 -> B+
C11: =Изчисления!C10 -> Разширено програмиране на Java | D11: =Изчисления!AL10 -> 75% | E11: =Изчисления!AM10 -> 2.00 | F11: =IFERROR(E11*Настройки!D13/SUM(таблПредмети[Кредити]),"") -> 0.42 | G11: =Изчисления!AN10 -> C
C12: =Изчисления!C11 -> Испански | D12: =Изчисления!AL11 -> 50% | E12: =Изчисления!AM11 -> 0.00 | F12: =IFERROR(E12*Настройки!D14/SUM(таблПредмети[Кредити]),"") -> 0.00 | G12: =Изчисления!AN11 -> F
C13: =Изчисления!C12 -> Съчинение | D13: =Изчисления!AL12 -> 95% | E13: =Изчисления!AM12 -> 4.00 | F13: =IFERROR(E13*Настройки!D15/SUM(таблПредмети[Кредити]),"") -> 0.33 | G13: =Изчисления!AN12 -> A
C14: =Изчисления!C13 ->  | D14: =Изчисления!AL13 ->  | E14: =Изчисления!AM13 ->  | F14: =IFERROR(E14*Настройки!D16/SUM(таблПредмети[Кредити]),"") ->  | G14: =Изчисления!AN13 -> 
C15: =Изчисления!C14 ->  | D15: =Изчисления!AL14 ->  | E15: =Изчисления!AM14 ->  | F15: =IFERROR(E15*Настройки!D17/SUM(таблПредмети[Кредити]),"") ->  | G15: =Изчисления!AN14 -> 
C16: =Изчисления!C15 ->  | D16: =Изчисления!AL15 ->  | E16: =Изчисления!AM15 ->  | F16: =IFERROR(E16*Настройки!D18/SUM(таблПредмети[Кредити]),"") ->  | G16: =Изчисления!AN15 -> 
C17: =Изчисления!C16 ->  | D17: =Изчисления!AL16 ->  | E17: =Изчисления!AM16 ->  | F17: =IFERROR(E17*Настройки!D19/SUM(таблПредмети[Кредити]),"") ->  | G17: =Изчисления!AN16 -> 
C18: =Изчисления!C17 ->  | D18: =Изчисления!AL17 ->  | E18: =Изчисления!AM17 ->  | F18: =IFERROR(E18*Настройки!D20/SUM(таблПредмети[Кредити]),"") ->  | G18: =Изчисления!AN17 -> 
C19: =Изчисления!C18 ->  | D19: =Изчисления!AL18 ->  | E19: =Изчисления!AM18 ->  | F19: =IFERROR(E19*Настройки!D21/SUM(таблПредмети[Кредити]),"") ->  | G19: =Изчисления!AN18 -> 
C20: =Изчисления!C19 ->  | D20: =Изчисления!AL19 ->  | E20: =Изчисления!AM19 ->  | F20: =IFERROR(E20*Настройки!D22/SUM(таблПредмети[Кредити]),"") ->  | G20: =Изчисления!AN19 -> 
C21: =Изчисления!C20 ->  | D21: =Изчисления!AL20 ->  | E21: =Изчисления!AM20 ->  | F21: =IFERROR(E21*Настройки!D23/SUM(таблПредмети[Кредити]),"") ->  | G21: =Изчисления!AN20 -> 
C22: =Изчисления!C21 ->  | D22: =Изчисления!AL21 ->  | E22: =Изчисления!AM21 ->  | F22: =IFERROR(E22*Настройки!D24/SUM(таблПредмети[Кредити]),"") ->  | G22: =Изчисления!AN21 -> 
C23: =Изчисления!C22 ->  | D23: =Изчисления!AL22 ->  | E23: =Изчисления!AM22 ->  | F23: =IFERROR(E23*Настройки!D25/SUM(таблПредмети[Кредити]),"") ->  | G23: =Изчисления!AN22 -> 
C24: =Изчисления!C23 ->  | D24: =Изчисления!AL23 ->  | E24: =Изчисления!AM23 ->  | F24: =IFERROR(E24*Настройки!D26/SUM(таблПредмети[Кредити]),"") ->  | G24: =Изчисления!AN23 -> 
C25: =Изчисления!C24 ->  | D25: =Изчисления!AL24 ->  | E25: =Изчисления!AM24 ->  | F25: =IFERROR(E25*Настройки!D27/SUM(таблПредмети[Кредити]),"") ->  | G25: =Изчисления!AN24 -> 
C26: =Изчисления!C25 ->  | D26: =Изчисления!AL25 ->  | E26: =Изчисления!AM25 ->  | F26: =IFERROR(E26*Настройки!D28/SUM(таблПредмети[Кредити]),"") ->  | G26: =Изчисления!AN25 -> 
C27: =Изчисления!C26 ->  | D27: =Изчисления!AL26 ->  | E27: =Изчисления!AM26 ->  | F27: =IFERROR(E27*Настройки!D29/SUM(таблПредмети[Кредити]),"") ->  | G27: =Изчисления!AN26 -> 
C28: =Изчисления!C27 ->  | D28: =Изчисления!AL27 ->  | E28: =Изчисления!AM27 ->  | F28: =IFERROR(E28*Настройки!D30/SUM(таблПредмети[Кредити]),"") ->  | G28: =Изчисления!AN27 -> 
C29: =Изчисления!C28 ->  | D29: =Изчисления!AL28 ->  | E29: =Изчисления!AM28 ->  | F29: =IFERROR(E29*Настройки!D31/SUM(таблПредмети[Кредити]),"") ->  | G29: =Изчисления!AN28 -> 
C30: =Изчисления!C29 ->  | D30: =Изчисления!AL29 ->  | E30: =Изчисления!AM29 ->  | F30: =IFERROR(E30*Настройки!D32/SUM(таблПредмети[Кредити]),"") ->  | G30: =Изчисления!AN29 -> 
C31: =Изчисления!C30 ->  | D31: =Изчисления!AL30 ->  | E31: =Изчисления!AM30 ->  | F31: =IFERROR(E31*Настройки!D33/SUM(таблПредмети[Кредити]),"") ->  | G31: =Изчисления!AN30 -> 

Sheet Настройки
B1: Настройки
C2: Оценки и среден успех
C3: Процент | D3: 0% | E3: 60% | F3: 63% | G3: 67% | H3: 70% | I3: 73% | J3: 77% | K3: 80% | L3: 83% | M3: 87% | N3: 90% | O3: 93% | P3: 97%
C4: Крайна оценка | D4: F | E4: D- | F4: D | G4: D+ | H4: C- | I4: C | J4: C+ | K4: B- | L4: B | M4: B+ | N4: A- | O4: A | P4: A+
C5: Общ успех | D5: 0 | E5: 0.67 | F5: 1 | G5: 1.33 | H5: 1.67 | I5: 2 | J5: 2.33 | K5: 2.67 | L5: 3 | M5: 3.33 | N5: 3.67 | O5: 4 | P5: 4
C7: Претеглени оценки за до 25 предмета
C8: Предмети, които вземате | D8: Кредити | E8: Домашна работа | F8: Есе | G8: Тест | H8: Проект | I8: Средносрочен изпит | J8: Заключителен изпит | K8: Други | L8: % общо
C9: Френски | D9: 3.0 | E9: 10% | F9: 15% | G9: 15% | H9: 10% | I9: 20% | J9: 30% | L9: =SUM(таблПредмети[[#This Row],[Домашна работа]:[Други]]) -> 100%
C10: Теоретична физика | D10: 3.0 | E10: 15% | F10: 15% | G10: 10% | H10: 10% | I10: 15% | J10: 30% | K10: 5% | L10: =SUM(таблПредмети[[#This Row],[Домашна работа]:[Други]]) -> 100%
C11: Математика 1 | D11: 4.0 | E11: 10% | F11: 15% | G11: 15% | H11: 10% | I11: 20% | J11: 30% | L11: =SUM(таблПредмети[[#This Row],[Домашна работа]:[Други]]) -> 100%
C12: Математика 2 | D12: 4.0 | E12: 15% | F12: 15% | G12: 10% | H12: 10% | I12: 15% | J12: 30% | K12: 5% | L12: =SUM(таблПредмети[[#This Row],[Домашна работа]:[Други]]) -> 100%
C13: Разширено програмиране на Java | D13: 5.0 | E13: 15% | F13: 15% | G13: 10% | H13: 10% | I13: 20% | J13: 30% | L13: =SUM(таблПредмети[[#This Row],[Домашна работа]:[Други]]) -> 100%
C14: Испански | D14: 3.0 | E14: 10% | F14: 15% | G14: 17% | H14: 13% | I14: 20% | J14: 20% | K14: 5% | L14: =SUM(таблПредмети[[#This Row],[Домашна работа]:[Други]]) -> 100%
C15: Съчинение | D15: 2.0 | E15: 15% | F15: 15% | G15: 12% | H15: 15% | I15: 15% | J15: 25% | K15: 3% | L15: =SUM(таблПредмети[[#This Row],[Домашна работа]:[Други]]) -> 100%

Sheet Изчисления (hidden)
B1: Изчисления
C2: Този работен лист съдържа изчисленията за вашите оценки и среден успех и трябва да остане скрит. Всякакви промени в този лист може да доведат до грешки.
C4: Текущ списък на курсове | D4: Успех (от 1) | AC4: Изчисляване на оценка
C5: Предмет | D5: 1 | E5: 2 | F5: 3 | G5: 4 | H5: 5 | I5: 6 | J5: 7 | K5: 8 | L5: 9 | M5: 10 | N5: 11 | O5: 12 | P5: 13 | Q5: 14 | R5: 15 | S5: 16 | T5: 17 | U5: 18 | V5: 19 | W5: 20 | X5: 21 | Y5: 22 | Z5: 23 | AA5: 24 | AB5: 25 | AC5: =таблПредмети[[#Headers],[Домашна работа]] -> Домашна работа | AD5: =таблПредмети[[#Headers],[Есе]] -> Есе | AE5: =таблПредмети[[#Headers],[Тест]] -> Тест | AF5: =таблПредмети[[#Headers],[Проект]] -> Проект | AG5: =таблПредмети[[#Headers],[Средносрочен изпит]] -> Средносрочен изпит | AH5: =таблПредмети[[#Headers],[Заключителен изпит]] -> Заключителен изпит | AI5: =таблПредмети[[#Headers],[Други]] -> Други | AJ5: Общо | AK5: Общо възможни точки | AL5: Общо % | AM5: Оценка | AN5: Крайна оценка
C6: =IF(Настройки!C9="","",Настройки!C9) -> Френски | D6: =IFERROR(INDEX(тблОценкиПредмети[],MATCH($C6:$C30&D$5:AB$5,Изчисления!$C$33:$C$657,0),4),"") -> 80% | E6: 90% | F6: 80% | AC6: =IFERROR(AVERAGEIFS(тблОценкиПредмети[Резултат],тблОценкиПредмети[Предмет],Изчисления!$C6,тблОценкиПредмети[Тип],Изчисления!AC$5)*Настройки!E9,"") -> 0.08333333333 | AD6: =IFERROR(AVERAGEIFS(тблОценкиПредмети[Резултат],тблОценкиПредмети[Предмет],Изчисления!$C6,тблОценкиПредмети[Тип],Изчисления!AD$5)*Настройки!F9,"") ->  | AE6: =IFERROR(AVERAGEIFS(тблОценкиПредмети[Резултат],тблОценкиПредмети[Предмет],Изчисления!$C6,тблОценкиПредмети[Тип],Изчисления!AE$5)*Настройки!G9,"") ->  | AF6: =IFERROR(AVERAGEIFS(тблОценкиПредмети[Резултат],тблОценкиПредмети[Предмет],Изчисления!$C6,тблОценкиПредмети[Тип],Изчисления!AF$5)*Настройки!H9,"") ->  | AG6: =IFERROR(AVERAGEIFS(тблОценкиПредмети[Резултат],тблОценкиПредмети[Предмет],Изчисления!$C6,тблОценкиПредмети[Тип],Изчисления!AG$5)*Настройки!I9,"") ->  | AH6: =IFERROR(AVERAGEIFS(тблОценкиПредмети[Резултат],тблОценкиПредмети[Предмет],Изчисления!$C6,тблОценкиПредмети[Тип],Изчисления!AH$5)*Настройки!J9,"") ->  | AI6: =IFERROR(AVERAGEIFS(тблОценкиПредмети[Резултат],тблОценкиПредмети[Предмет],Изчисления!$C6,тблОценкиПредмети[Тип],Изчисления!AI$5)*Настройки!K9,"") ->  | AJ6: =SUM(AC6:AI6) -> 0.08333333333 | AK6: =SUMIFS(Настройки!E9:K9,Изчисления!AC6:AI6,">0") -> 0.1 | AL6: =IFERROR(AJ6/AK6,"") -> 83% | AM6: =IFERROR(HLOOKUP(AL6,послСреденУспех,3),"") -> 3 | AN6: =IFERROR(HLOOKUP(AL6,послСреденУспех,2),"") -> B
C7: =IF(Настройки!C10="","",Настройки!C10) -> Теоретична физика | D7: 95% | AC7: =IFERROR(AVERAGEIFS(тблОценкиПредмети[Резултат],тблОценкиПредмети[Предмет],Изчисления!$C7,тблОценкиПредмети[Тип],Изчисления!AC$5)*Настройки!E10,"") -> 0.1425 | AD7: =IFERROR(AVERAGEIFS(тблОценкиПредмети[Резултат],тблОценкиПредмети[Предмет],Изчисления!$C7,тблОценкиПредмети[Тип],Изчисления!AD$5)*Настройки!F10,"") ->  | AE7: =IFERROR(AVERAGEIFS(тблОценкиПредмети[Резултат],тблОценкиПредмети[Предмет],Изчисления!$C7,тблОценкиПредмети[Тип],Изчисления!AE$5)*Настройки!G10,"") ->  | AF7: =IFERROR(AVERAGEIFS(тблОценкиПредмети[Резултат],тблОценкиПредмети[Предмет],Изчисления!$C7,тблОценкиПредмети[Тип],Изчисления!AF$5)*Настройки!H10,"") ->  | AG7: =IFERROR(AVERAGEIFS(тблОценкиПредмети[Резултат],тблОценкиПредмети[Предмет],Изчисления!$C7,тблОценкиПредмети[Тип],Изчисления!AG$5)*Настройки!I10,"") ->  | AH7: =IFERROR(AVERAGEIFS(тблОценкиПредмети[Резултат],тблОценкиПредмети[Предмет],Изчисления!$C7,тблОценкиПредмети[Тип],Изчисления!AH$5)*Настройки!J10,"") ->  | AI7: =IFERROR(AVERAGEIFS(тблОценкиПредмети[Резултат],тблОценкиПредмети[Предмет],Изчисления!$C7,тблОценкиПредмети[Тип],Изчисления!AI$5)*Настройки!K10,"") ->  | AJ7: =SUM(AC7:AI7) -> 0.1425 | AK7: =SUMIFS(Настройки!E10:K10,Изчисления!AC7:AI7,">0") -> 0.15 | AL7: =IFERROR(AJ7/AK7,"") -> 95% | AM7: 4 | AN7: A
C8: =IF(Настройки!C11="","",Настройки!C11) -> Математика 1 | D8: 80% | E8: 80% | AC8: =IFERROR(AVERAGEIFS(тблОценкиПредмети[Резултат],тблОценкиПредмети[Предмет],Изчисления!$C8,тблОценкиПредмети[Тип],Изчисления!AC$5)*Настройки!E11,"") -> 0.08 | AD8: =IFERROR(AVERAGEIFS(тблОценкиПредмети[Резултат],тблОценкиПредмети[Предмет],Изчисления!$C8,тблОценкиПредмети[Тип],Изчисления!AD$5)*Настройки!F11,"") ->  | AE8: =IFERROR(AVERAGEIFS(тблОценкиПредмети[Резултат],тблОценкиПредмети[Предмет],Изчисления!$C8,тблОценкиПредмети[Тип],Изчисления!AE$5)*Настройки!G11,"") ->  | AF8: =IFERROR(AVERAGEIFS(тблОценкиПредмети[Резултат],тблОценкиПредмети[Предмет],Изчисления!$C8,тблОценкиПредмети[Тип],Изчисления!AF$5)*Настройки!H11,"") ->  | AG8: =IFERROR(AVERAGEIFS(тблОценкиПредмети[Резултат],тблОценкиПредмети[Предмет],Изчисления!$C8,тблОценкиПредмети[Тип],Изчисления!AG$5)*Настройки!I11,"") ->  | AH8: =IFERROR(AVERAGEIFS(тблОценкиПредмети[Резултат],тблОценкиПредмети[Предмет],Изчисления!$C8,тблОценкиПредмети[Тип],Изчисления!AH$5)*Настройки!J11,"") ->  | AI8: =IFERROR(AVERAGEIFS(тблОценкиПредмети[Резултат],тблОценкиПредмети[Предмет],Изчисления!$C8,тблОценкиПредмети[Тип],Изчисления!AI$5)*Настройки!K11,"") ->  | AJ8: 0.08 | AK8: =SUMIFS(Настройки!E11:K11,Изчисления!AC8:AI8,">0") -> 0.1 | AL8: 80% | AM8: 2.67 | AN8: B-
C9: =IF(Настройки!C12="","",Настройки!C12) -> Математика 2 | D9: 85% | E9: 95% | AC9: =IFERROR(AVERAGEIFS(тблОценкиПредмети[Резултат],тблОценкиПредмети[Предмет],Изчисления!$C9,тблОценкиПредмети[Тип],Изчисления!AC$5)*Настройки!E12,"") -> 0.1275 | AD9: =IFERROR(AVERAGEIFS(тблОценкиПредмети[Резултат],тблОценкиПредмети[Предмет],Изчисления!$C9,тблОценкиПредмети[Тип],Изчисления!AD$5)*Настройки!F12,"") ->  | AE9: =IFERROR(AVERAGEIFS(тблОценкиПредмети[Резултат],тблОценкиПредмети[Предмет],Изчисления!$C9,тблОценкиПредмети[Тип],Изчисления!AE$5)*Настройки!G12,"") -> 0.095 | AF9: =IFERROR(AVERAGEIFS(тблОценкиПредмети[Резултат],тблОценкиПредмети[Предмет],Изчисления!$C9,тблОценкиПредмети[Тип],Изчисления!AF$5)*Настройки!H12,"") ->  | AG9: =IFERROR(AVERAGEIFS(тблОценкиПредмети[Резултат],тблОценкиПредмети[Предмет],Изчисления!$C9,тблОценкиПредмети[Тип],Изчисления!AG$5)*Настройки!I12,"") ->  | AH9: =IFERROR(AVERAGEIFS(тблОценкиПредмети[Резултат],тблОценкиПредмети[Предмет],Изчисления!$C9,тблОценкиПредмети[Тип],Изчисления!AH$5)*Настройки!J12,"") ->  | AI9: =IFERROR(AVERAGEIFS(тблОценкиПредмети[Резултат],тблОценкиПредмети[Предмет],Изчисления!$C9,тблОценкиПредмети[Тип],Изчисления!AI$5)*Настройки!K12,"") ->  | AJ9: 0.2225 | AK9: =SUMIFS(Настройки!E12:K12,Изчисления!AC9:AI9,">0") -> 0.25 | AL9: 89% | AM9: 3.33 | AN9: B+
C10: =IF(Настройки!C13="","",Настройки!C13) -> Разширено програмиране на Java | D10: 75% | AC10: =IFERROR(AVERAGEIFS(тблОценкиПредмети[Резултат],тблОценкиПредмети[Предмет],Изчисления!$C10,тблОценкиПредмети[Тип],Изчисления!AC$5)*Настройки!E13,"") ->  | AD10: =IFERROR(AVERAGEIFS(тблОценкиПредмети[Резултат],тблОценкиПредмети[Предмет],Изчисления!$C10,тблОценкиПредмети[Тип],Изчисления!AD$5)*Настройки!F13,"") ->  | AE10: =IFERROR(AVERAGEIFS(тблОценкиПредмети[Резултат],тблОценкиПредмети[Предмет],Изчисления!$C10,тблОценкиПредмети[Тип],Изчисления!AE$5)*Настройки!G13,"") ->  | AF10: =IFERROR(AVERAGEIFS(тблОценкиПредмети[Резултат],тблОценкиПредмети[Предмет],Изчисления!$C10,тблОценкиПредмети[Тип],Изчисления!AF$5)*Настройки!H13,"") ->  | AG10: =IFERROR(AVERAGEIFS(тблОценкиПредмети[Резултат],тблОценкиПредмети[Предмет],Изчисления!$C10,тблОценкиПредмети[Тип],Изчисления!AG$5)*Настройки!I13,"") -> 0.15 | AH10: =IFERROR(AVERAGEIFS(тблОценкиПредмети[Резултат],тблОценкиПредмети[Предмет],Изчисления!$C10,тблОценкиПредмети[Тип],Изчисления!AH$5)*Настройки!J13,"") ->  | AI10: =IFERROR(AVERAGEIFS(тблОценкиПредмети[Резултат],тблОценкиПредмети[Предмет],Изчисления!$C10,тблОценкиПредмети[Тип],Изчисления!AI$5)*Настройки!K13,"") ->  | AJ10: 0.15 | AK10: =SUMIFS(Настройки!E13:K13,Изчисления!AC10:AI10,">0") -> 0.2 | AL10: 75% | AM10: 2 | AN10: C
C11: =IF(Настройки!C14="","",Настройки!C14) -> Испански | D11: 50% | AC11: =IFERROR(AVERAGEIFS(тблОценкиПредмети[Резултат],тблОценкиПредмети[Предмет],Изчисления!$C11,тблОценкиПредмети[Тип],Изчисления!AC$5)*Настройки!E14,"") -> 0.05 | AD11: =IFERROR(AVERAGEIFS(тблОценкиПредмети[Резултат],тблОценкиПредмети[Предмет],Изчисления!$C11,тблОценкиПредмети[Тип],Изчисления!AD$5)*Настройки!F14,"") ->  | AE11: =IFERROR(AVERAGEIFS(тблОценкиПредмети[Резултат],тблОценкиПредмети[Предмет],Изчисления!$C11,тблОценкиПредмети[Тип],Изчисления!AE$5)*Настройки!G14,"") ->  | AF11: =IFERROR(AVERAGEIFS(тблОценкиПредмети[Резултат],тблОценкиПредмети[Предмет],Изчисления!$C11,тблОценкиПредмети[Тип],Изчисления!AF$5)*Настройки!H14,"") ->  | AG11: =IFERROR(AVERAGEIFS(тблОценкиПредмети[Резултат],тблОценкиПредмети[Предмет],Изчисления!$C11,тблОценкиПредмети[Тип],Изчисления!AG$5)*Настройки!I14,"") ->  | AH11: =IFERROR(AVERAGEIFS(тблОценкиПредмети[Резултат],тблОценкиПредмети[Предмет],Изчисления!$C11,тблОценкиПредмети[Тип],Изчисления!AH$5)*Настройки!J14,"") ->  | AI11: =IFERROR(AVERAGEIFS(тблОценкиПредмети[Резултат],тблОценкиПредмети[Предмет],Изчисления!$C11,тблОценкиПредмети[Тип],Изчисления!AI$5)*Настройки!K14,"") ->  | AJ11: 0.05 | AK11: =SUMIFS(Настройки!E14:K14,Изчисления!AC11:AI11,">0") -> 0.1 | AL11: 50% | AM11: 0 | AN11: F
C12: =IF(Настройки!C15="","",Настройки!C15) -> Съчинение | D12: 95% | AC12: =IFERROR(AVERAGEIFS(тблОценкиПредмети[Резултат],тблОценкиПредмети[Предмет],Изчисления!$C12,тблОценкиПредмети[Тип],Изчисления!AC$5)*Настройки!E15,"") ->  | AD12: =IFERROR(AVERAGEIFS(тблОценкиПредмети[Резултат],тблОценкиПредмети[Предмет],Изчисления!$C12,тблОценкиПредмети[Тип],Изчисления!AD$5)*Настройки!F15,"") -> 0.1425 | AE12: =IFERROR(AVERAGEIFS(тблОценкиПредмети[Резултат],тблОценкиПредмети[Предмет],Изчисления!$C12,тблОценкиПредмети[Тип],Изчисления!AE$5)*Настройки!G15,"") ->  | AF12: =IFERROR(AVERAGEIFS(тблОценкиПредмети[Резултат],тблОценкиПредмети[Предмет],Изчисления!$C12,тблОценкиПредмети[Тип],Изчисления!AF$5)*Настройки!H15,"") ->  | AG12: =IFERROR(AVERAGEIFS(тблОценкиПредмети[Резултат],тблОценкиПредмети[Предмет],Изчисления!$C12,тблОценкиПредмети[Тип],Изчисления!AG$5)*Настройки!I15,"") ->  | AH12: =IFERROR(AVERAGEIFS(тблОценкиПредмети[Резултат],тблОценкиПредмети[Предмет],Изчисления!$C12,тблОценкиПредмети[Тип],Изчисления!AH$5)*Настройки!J15,"") ->  | AI12: =IFERROR(AVERAGEIFS(тблОценкиПредмети[Резултат],тблОценкиПредмети[Предмет],Изчисления!$C12,тблОценкиПредмети[Тип],Изчисления!AI$5)*Настройки!K15,"") ->  | AJ12: 0.1425 | AK12: =SUMIFS(Настройки!E15:K15,Изчисления!AC12:AI12,">0") -> 0.15 | AL12: 95% | AM12: 4 | AN12: A
C13: =IF(Настройки!C16="","",Настройки!C16) ->  | AC13: =IFERROR(AVERAGEIFS(тблОценкиПредмети[Резултат],тблОценкиПредмети[Предмет],Изчисления!$C13,тблОценкиПредмети[Тип],Изчисления!AC$5)*Настройки!E16,"") ->  | AD13: =IFERROR(AVERAGEIFS(тблОценкиПредмети[Резултат],тблОценкиПредмети[Предмет],Изчисления!$C13,тблОценкиПредмети[Тип],Изчисления!AD$5)*Настройки!F16,"") ->  | AE13: =IFERROR(AVERAGEIFS(тблОценкиПредмети[Резултат],тблОценкиПредмети[Предмет],Изчисления!$C13,тблОценкиПредмети[Тип],Изчисления!AE$5)*Настройки!G16,"") ->  | AF13: =IFERROR(AVERAGEIFS(тблОценкиПредмети[Резултат],тблОценкиПредмети[Предмет],Изчисления!$C13,тблОценкиПредмети[Тип],Изчисления!AF$5)*Настройки!H16,"") ->  | AG13: =IFERROR(AVERAGEIFS(тблОценкиПредмети[Резултат],тблОценкиПредмети[Предмет],Изчисления!$C13,тблОценкиПредмети[Тип],Изчисления!AG$5)*Настройки!I16,"") ->  | AH13: =IFERROR(AVERAGEIFS(тблОценкиПредмети[Резултат],тблОценкиПредмети[Предмет],Изчисления!$C13,тблОценкиПредмети[Тип],Изчисления!AH$5)*Настройки!J16,"") ->  | AI13: =IFERROR(AVERAGEIFS(тблОценкиПредмети[Резултат],тблОценкиПредмети[Предмет],Изчисления!$C13,тблОценкиПредмети[Тип],Изчисления!AI$5)*Настройки!K16,"") ->  | AJ13: =SUM(AC13:AI13) -> 0 | AK13: =SUMIFS(Настройки!E16:K16,Изчисления!AC13:AI13,">0") -> 0 | AL13: =IFERROR(AJ13/AK13,"") -> 
C14: =IF(Настройки!C17="","",Настройки!C17) ->  | AC14: =IFERROR(AVERAGEIFS(тблОценкиПредмети[Резултат],тблОценкиПредмети[Предмет],Изчисления!$C14,тблОценкиПредмети[Тип],Изчисления!AC$5)*Настройки!E17,"") ->  | AD14: =IFERROR(AVERAGEIFS(тблОценкиПредмети[Резултат],тблОценкиПредмети[Предмет],Изчисления!$C14,тблОценкиПредмети[Тип],Изчисления!AD$5)*Настройки!F17,"") ->  | AE14: =IFERROR(AVERAGEIFS(тблОценкиПредмети[Резултат],тблОценкиПредмети[Предмет],Изчисления!$C14,тблОценкиПредмети[Тип],Изчисления!AE$5)*Настройки!G17,"") ->  | AF14: =IFERROR(AVERAGEIFS(тблОценкиПредмети[Резултат],тблОценкиПредмети[Предмет],Изчисления!$C14,тблОценкиПредмети[Тип],Изчисления!AF$5)*Настройки!H17,"") ->  | AG14: =IFERROR(AVERAGEIFS(тблОценкиПредмети[Резултат],тблОценкиПредмети[Предмет],Изчисления!$C14,тблОценкиПредмети[Тип],Изчисления!AG$5)*Настройки!I17,"") ->  | AH14: =IFERROR(AVERAGEIFS(тблОценкиПредмети[Резултат],тблОценкиПредмети[Предмет],Изчисления!$C14,тблОценкиПредмети[Тип],Изчисления!AH$5)*Настройки!J17,"") ->  | AI14: =IFERROR(AVERAGEIFS(тблОценкиПредмети[Резултат],тблОценкиПредмети[Предмет],Изчисления!$C14,тблОценкиПредмети[Тип],Изчисления!AI$5)*Настройки!K17,"") ->  | AJ14: 0 | AK14: =SUMIFS(Настройки!E17:K17,Изчисления!AC14:AI14,">0") -> 0
C15: =IF(Настройки!C18="","",Настройки!C18) ->  | AC15: =IFERROR(AVERAGEIFS(тблОценкиПредмети[Резултат],тблОценкиПредмети[Предмет],Изчисления!$C15,тблОценкиПредмети[Тип],Изчисления!AC$5)*Настройки!E18,"") ->  | AD15: =IFERROR(AVERAGEIFS(тблОценкиПредмети[Резултат],тблОценкиПредмети[Предмет],Изчисления!$C15,тблОценкиПредмети[Тип],Изчисления!AD$5)*Настройки!F18,"") ->  | AE15: =IFERROR(AVERAGEIFS(тблОценкиПредмети[Резултат],тблОценкиПредмети[Предмет],Изчисления!$C15,тблОценкиПредмети[Тип],Изчисления!AE$5)*Настройки!G18,"") ->  | AF15: =IFERROR(AVERAGEIFS(тблОценкиПредмети[Резултат],тблОценкиПредмети[Предмет],Изчисления!$C15,тблОценкиПредмети[Тип],Изчисления!AF$5)*Настройки!H18,"") ->  | AG15: =IFERROR(AVERAGEIFS(тблОценкиПредмети[Резултат],тблОценкиПредмети[Предмет],Изчисления!$C15,тблОценкиПредмети[Тип],Изчисления!AG$5)*Настройки!I18,"") ->  | AH15: =IFERROR(AVERAGEIFS(тблОценкиПредмети[Резултат],тблОценкиПредмети[Предмет],Изчисления!$C15,тблОценкиПредмети[Тип],Изчисления!AH$5)*Настройки!J18,"") ->  | AI15: =IFERROR(AVERAGEIFS(тблОценкиПредмети[Резултат],тблОценкиПредмети[Предмет],Изчисления!$C15,тблОценкиПредмети[Тип],Изчисления!AI$5)*Настройки!K18,"") ->  | AJ15: 0 | AK15: =SUMIFS(Настройки!E18:K18,Изчисления!AC15:AI15,">0") -> 0
C16: =IF(Настройки!C19="","",Настройки!C19) ->  | AC16: =IFERROR(AVERAGEIFS(тблОценкиПредмети[Резултат],тблОценкиПредмети[Предмет],Изчисления!$C16,тблОценкиПредмети[Тип],Изчисления!AC$5)*Настройки!E19,"") ->  | AD16: =IFERROR(AVERAGEIFS(тблОценкиПредмети[Резултат],тблОценкиПредмети[Предмет],Изчисления!$C16,тблОценкиПредмети[Тип],Изчисления!AD$5)*Настройки!F19,"") ->  | AE16: =IFERROR(AVERAGEIFS(тблОценкиПредмети[Резултат],тблОценкиПредмети[Предмет],Изчисления!$C16,тблОценкиПредмети[Тип],Изчисления!AE$5)*Настройки!G19,"") ->  | AF16: =IFERROR(AVERAGEIFS(тблОценкиПредмети[Резултат],тблОценкиПредмети[Предмет],Изчисления!$C16,тблОценкиПредмети[Тип],Изчисления!AF$5)*Настройки!H19,"") ->  | AG16: =IFERROR(AVERAGEIFS(тблОценкиПредмети[Резултат],тблОценкиПредмети[Предмет],Изчисления!$C16,тблОценкиПредмети[Тип],Изчисления!AG$5)*Настройки!I19,"") ->  | AH16: =IFERROR(AVERAGEIFS(тблОценкиПредмети[Резултат],тблОценкиПредмети[Предмет],Изчисления!$C16,тблОценкиПредмети[Тип],Изчисления!AH$5)*Настройки!J19,"") ->  | AI16: =IFERROR(AVERAGEIFS(тблОценкиПредмети[Резултат],тблОценкиПредмети[Предмет],Изчисления!$C16,тблОценкиПредмети[Тип],Изчисления!AI$5)*Настройки!K19,"") ->  | AJ16: 0 | AK16: =SUMIFS(Настройки!E19:K19,Изчисления!AC16:AI16,">0") -> 0
C17: =IF(Настройки!C20="","",Настройки!C20) ->  | AC17: =IFERROR(AVERAGEIFS(тблОценкиПредмети[Резултат],тблОценкиПредмети[Предмет],Изчисления!$C17,тблОценкиПредмети[Тип],Изчисления!AC$5)*Настройки!E20,"") ->  | AD17: =IFERROR(AVERAGEIFS(тблОценкиПредмети[Резултат],тблОценкиПредмети[Предмет],Изчисления!$C17,тблОценкиПредмети[Тип],Изчисления!AD$5)*Настройки!F20,"") ->  | AE17: =IFERROR(AVERAGEIFS(тблОценкиПредмети[Резултат],тблОценкиПредмети[Предмет],Изчисления!$C17,тблОценкиПредмети[Тип],Изчисления!AE$5)*Настройки!G20,"") ->  | AF17: =IFERROR(AVERAGEIFS(тблОценкиПредмети[Резултат],тблОценкиПредмети[Предмет],Изчисления!$C17,тблОценкиПредмети[Тип],Изчисления!AF$5)*Настройки!H20,"") ->  | AG17: =IFERROR(AVERAGEIFS(тблОценкиПредмети[Резултат],тблОценкиПредмети[Предмет],Изчисления!$C17,тблОценкиПредмети[Тип],Изчисления!AG$5)*Настройки!I20,"") ->  | AH17: =IFERROR(AVERAGEIFS(тблОценкиПредмети[Резултат],тблОценкиПредмети[Предмет],Изчисления!$C17,тблОценкиПредмети[Тип],Изчисления!AH$5)*Настройки!J20,"") ->  | AI17: =IFERROR(AVERAGEIFS(тблОценкиПредмети[Резултат],тблОценкиПредмети[Предмет],Изчисления!$C17,тблОценкиПредмети[Тип],Изчисления!AI$5)*Настройки!K20,"") ->  | AJ17: 0 | AK17: =SUMIFS(Настройки!E20:K20,Изчисления!AC17:AI17,">0") -> 0
C18: =IF(Настройки!C21="","",Настройки!C21) ->  | AC18: =IFERROR(AVERAGEIFS(тблОценкиПредмети[Резултат],тблОценкиПредмети[Предмет],Изчисления!$C18,тблОценкиПредмети[Тип],Изчисления!AC$5)*Настройки!E21,"") ->  | AD18: =IFERROR(AVERAGEIFS(тблОценкиПредмети[Резултат],тблОценкиПредмети[Предмет],Изчисления!$C18,тблОценкиПредмети[Тип],Изчисления!AD$5)*Настройки!F21,"") ->  | AE18: =IFERROR(AVERAGEIFS(тблОценкиПредмети[Резултат],тблОценкиПредмети[Предмет],Изчисления!$C18,тблОценкиПредмети[Тип],Изчисления!AE$5)*Настройки!G21,"") ->  | AF18: =IFERROR(AVERAGEIFS(тблОценкиПредмети[Резултат],тблОценкиПредмети[Предмет],Изчисления!$C18,тблОценкиПредмети[Тип],Изчисления!AF$5)*Настройки!H21,"") ->  | AG18: =IFERROR(AVERAGEIFS(тблОценкиПредмети[Резултат],тблОценкиПредмети[Предмет],Изчисления!$C18,тблОценкиПредмети[Тип],Изчисления!AG$5)*Настройки!I21,"") ->  | AH18: =IFERROR(AVERAGEIFS(тблОценкиПредмети[Резултат],тблОценкиПредмети[Предмет],Изчисления!$C18,тблОценкиПредмети[Тип],Изчисления!AH$5)*Настройки!J21,"") ->  | AI18: =IFERROR(AVERAGEIFS(тблОценкиПредмети[Резултат],тблОценкиПредмети[Предмет],Изчисления!$C18,тблОценкиПредмети[Тип],Изчисления!AI$5)*Настройки!K21,"") ->  | AJ18: 0 | AK18: =SUMIFS(Настройки!E21:K21,Изчисления!AC18:AI18,">0") -> 0
C19: =IF(Настройки!C22="","",Настройки!C22) ->  | AC19: =IFERROR(AVERAGEIFS(тблОценкиПредмети[Резултат],тблОценкиПредмети[Предмет],Изчисления!$C19,тблОценкиПредмети[Тип],Изчисления!AC$5)*Настройки!E22,"") ->  | AD19: =IFERROR(AVERAGEIFS(тблОценкиПредмети[Резултат],тблОценкиПредмети[Предмет],Изчисления!$C19,тблОценкиПредмети[Тип],Изчисления!AD$5)*Настройки!F22,"") ->  | AE19: =IFERROR(AVERAGEIFS(тблОценкиПредмети[Резултат],тблОценкиПредмети[Предмет],Изчисления!$C19,тблОценкиПредмети[Тип],Изчисления!AE$5)*Настройки!G22,"") ->  | AF19: =IFERROR(AVERAGEIFS(тблОценкиПредмети[Резултат],тблОценкиПредмети[Предмет],Изчисления!$C19,тблОценкиПредмети[Тип],Изчисления!AF$5)*Настройки!H22,"") ->  | AG19: =IFERROR(AVERAGEIFS(тблОценкиПредмети[Резултат],тблОценкиПредмети[Предмет],Изчисления!$C19,тблОценкиПредмети[Тип],Изчисления!AG$5)*Настройки!I22,"") ->  | AH19: =IFERROR(AVERAGEIFS(тблОценкиПредмети[Резултат],тблОценкиПредмети[Предмет],Изчисления!$C19,тблОценкиПредмети[Тип],Изчисления!AH$5)*Настройки!J22,"") ->  | AI19: =IFERROR(AVERAGEIFS(тблОценкиПредмети[Резултат],тблОценкиПредмети[Предмет],Изчисления!$C19,тблОценкиПредмети[Тип],Изчисления!AI$5)*Настройки!K22,"") ->  | AJ19: 0 | AK19: =SUMIFS(Настройки!E22:K22,Изчисления!AC19:AI19,">0") -> 0
C20: =IF(Настройки!C23="","",Настройки!C23) ->  | AC20: =IFERROR(AVERAGEIFS(тблОценкиПредмети[Резултат],тблОценкиПредмети[Предмет],Изчисления!$C20,тблОценкиПредмети[Тип],Изчисления!AC$5)*Настройки!E23,"") ->  | AD20: =IFERROR(AVERAGEIFS(тблОценкиПредмети[Резултат],тблОценкиПредмети[Предмет],Изчисления!$C20,тблОценкиПредмети[Тип],Изчисления!AD$5)*Настройки!F23,"") ->  | AE20: =IFERROR(AVERAGEIFS(тблОценкиПредмети[Резултат],тблОценкиПредмети[Предмет],Изчисления!$C20,тблОценкиПредмети[Тип],Изчисления!AE$5)*Настройки!G23,"") ->  | AF20: =IFERROR(AVERAGEIFS(тблОценкиПредмети[Резултат],тблОценкиПредмети[Предмет],Изчисления!$C20,тблОценкиПредмети[Тип],Изчисления!AF$5)*Настройки!H23,"") ->  | AG20: =IFERROR(AVERAGEIFS(тблОценкиПредмети[Резултат],тблОценкиПредмети[Предмет],Изчисления!$C20,тблОценкиПредмети[Тип],Изчисления!AG$5)*Настройки!I23,"") ->  | AH20: =IFERROR(AVERAGEIFS(тблОценкиПредмети[Резултат],тблОценкиПредмети[Предмет],Изчисления!$C20,тблОценкиПредмети[Тип],Изчисления!AH$5)*Настройки!J23,"") ->  | AI20: =IFERROR(AVERAGEIFS(тблОценкиПредмети[Резултат],тблОценкиПредмети[Предмет],Изчисления!$C20,тблОценкиПредмети[Тип],Изчисления!AI$5)*Настройки!K23,"") ->  | AJ20: 0 | AK20: =SUMIFS(Настройки!E23:K23,Изчисления!AC20:AI20,">0") -> 0
C21: =IF(Настройки!C24="","",Настройки!C24) ->  | AC21: =IFERROR(AVERAGEIFS(тблОценкиПредмети[Резултат],тблОценкиПредмети[Предмет],Изчисления!$C21,тблОценкиПредмети[Тип],Изчисления!AC$5)*Настройки!E24,"") ->  | AD21: =IFERROR(AVERAGEIFS(тблОценкиПредмети[Резултат],тблОценкиПредмети[Предмет],Изчисления!$C21,тблОценкиПредмети[Тип],Изчисления!AD$5)*Настройки!F24,"") ->  | AE21: =IFERROR(AVERAGEIFS(тблОценкиПредмети[Резултат],тблОценкиПредмети[Предмет],Изчисления!$C21,тблОценкиПредмети[Тип],Изчисления!AE$5)*Настройки!G24,"") ->  | AF21: =IFERROR(AVERAGEIFS(тблОценкиПредмети[Резултат],тблОценкиПредмети[Предмет],Изчисления!$C21,тблОценкиПредмети[Тип],Изчисления!AF$5)*Настройки!H24,"") ->  | AG21: =IFERROR(AVERAGEIFS(тблОценкиПредмети[Резултат],тблОценкиПредмети[Предмет],Изчисления!$C21,тблОценкиПредмети[Тип],Изчисления!AG$5)*Настройки!I24,"") ->  | AH21: =IFERROR(AVERAGEIFS(тблОценкиПредмети[Резултат],тблОценкиПредмети[Предмет],Изчисления!$C21,тблОценкиПредмети[Тип],Изчисления!AH$5)*Настройки!J24,"") ->  | AI21: =IFERROR(AVERAGEIFS(тблОценкиПредмети[Резултат],тблОценкиПредмети[Предмет],Изчисления!$C21,тблОценкиПредмети[Тип],Изчисления!AI$5)*Настройки!K24,"") ->  | AJ21: 0 | AK21: =SUMIFS(Настройки!E24:K24,Изчисления!AC21:AI21,">0") -> 0
C22: =IF(Настройки!C25="","",Настройки!C25) ->  | AC22: =IFERROR(AVERAGEIFS(тблОценкиПредмети[Резултат],тблОценкиПредмети[Предмет],Изчисления!$C22,тблОценкиПредмети[Тип],Изчисления!AC$5)*Настройки!E25,"") ->  | AD22: =IFERROR(AVERAGEIFS(тблОценкиПредмети[Резултат],тблОценкиПредмети[Предмет],Изчисления!$C22,тблОценкиПредмети[Тип],Изчисления!AD$5)*Настройки!F25,"") ->  | AE22: =IFERROR(AVERAGEIFS(тблОценкиПредмети[Резултат],тблОценкиПредмети[Предмет],Изчисления!$C22,тблОценкиПредмети[Тип],Изчисления!AE$5)*Настройки!G25,"") ->  | AF22: =IFERROR(AVERAGEIFS(тблОценкиПредмети[Резултат],тблОценкиПредмети[Предмет],Изчисления!$C22,тблОценкиПредмети[Тип],Изчисления!AF$5)*Настройки!H25,"") ->  | AG22: =IFERROR(AVERAGEIFS(тблОценкиПредмети[Резултат],тблОценкиПредмети[Предмет],Изчисления!$C22,тблОценкиПредмети[Тип],Изчисления!AG$5)*Настройки!I25,"") ->  | AH22: =IFERROR(AVERAGEIFS(тблОценкиПредмети[Резултат],тблОценкиПредмети[Предмет],Изчисления!$C22,тблОценкиПредмети[Тип],Изчисления!AH$5)*Настройки!J25,"") ->  | AI22: =IFERROR(AVERAGEIFS(тблОценкиПредмети[Резултат],тблОценкиПредмети[Предмет],Изчисления!$C22,тблОценкиПредмети[Тип],Изчисления!AI$5)*Настройки!K25,"") ->  | AJ22: 0 | AK22: =SUMIFS(Настройки!E25:K25,Изчисления!AC22:AI22,">0") -> 0
C23: =IF(Настройки!C26="","",Настройки!C26) ->  | AC23: =IFERROR(AVERAGEIFS(тблОценкиПредмети[Резултат],тблОценкиПредмети[Предмет],Изчисления!$C23,тблОценкиПредмети[Тип],Изчисления!AC$5)*Настройки!E26,"") ->  | AD23: =IFERROR(AVERAGEIFS(тблОценкиПредмети[Резултат],тблОценкиПредмети[Предмет],Изчисления!$C23,тблОценкиПредмети[Тип],Изчисления!AD$5)*Настройки!F26,"") ->  | AE23: =IFERROR(AVERAGEIFS(тблОценкиПредмети[Резултат],тблОценкиПредмети[Предмет],Изчисления!$C23,тблОценкиПредмети[Тип],Изчисления!AE$5)*Настройки!G26,"") ->  | AF23: =IFERROR(AVERAGEIFS(тблОценкиПредмети[Резултат],тблОценкиПредмети[Предмет],Изчисления!$C23,тблОценкиПредмети[Тип],Изчисления!AF$5)*Настройки!H26,"") ->  | AG23: =IFERROR(AVERAGEIFS(тблОценкиПредмети[Резултат],тблОценкиПредмети[Предмет],Изчисления!$C23,тблОценкиПредмети[Тип],Изчисления!AG$5)*Настройки!I26,"") ->  | AH23: =IFERROR(AVERAGEIFS(тблОценкиПредмети[Резултат],тблОценкиПредмети[Предмет],Изчисления!$C23,тблОценкиПредмети[Тип],Изчисления!AH$5)*Настройки!J26,"") ->  | AI23: =IFERROR(AVERAGEIFS(тблОценкиПредмети[Резултат],тблОценкиПредмети[Предмет],Изчисления!$C23,тблОценкиПредмети[Тип],Изчисления!AI$5)*Настройки!K26,"") ->  | AJ23: 0 | AK23: =SUMIFS(Настройки!E26:K26,Изчисления!AC23:AI23,">0") -> 0
C24: =IF(Настройки!C27="","",Настройки!C27) ->  | AC24: =IFERROR(AVERAGEIFS(тблОценкиПредмети[Резултат],тблОценкиПредмети[Предмет],Изчисления!$C24,тблОценкиПредмети[Тип],Изчисления!AC$5)*Настройки!E27,"") ->  | AD24: =IFERROR(AVERAGEIFS(тблОценкиПредмети[Резултат],тблОценкиПредмети[Предмет],Изчисления!$C24,тблОценкиПредмети[Тип],Изчисления!AD$5)*Настройки!F27,"") ->  | AE24: =IFERROR(AVERAGEIFS(тблОценкиПредмети[Резултат],тблОценкиПредмети[Предмет],Изчисления!$C24,тблОценкиПредмети[Тип],Изчисления!AE$5)*Настройки!G27,"") ->  | AF24: =IFERROR(AVERAGEIFS(тблОценкиПредмети[Резултат],тблОценкиПредмети[Предмет],Изчисления!$C24,тблОценкиПредмети[Тип],Изчисления!AF$5)*Настройки!H27,"") ->  | AG24: =IFERROR(AVERAGEIFS(тблОценкиПредмети[Резултат],тблОценкиПредмети[Предмет],Изчисления!$C24,тблОценкиПредмети[Тип],Изчисления!AG$5)*Настройки!I27,"") ->  | AH24: =IFERROR(AVERAGEIFS(тблОценкиПредмети[Резултат],тблОценкиПредмети[Предмет],Изчисления!$C24,тблОценкиПредмети[Тип],Изчисления!AH$5)*Настройки!J27,"") ->  | AI24: =IFERROR(AVERAGEIFS(тблОценкиПредмети[Резултат],тблОценкиПредмети[Предмет],Изчисления!$C24,тблОценкиПредмети[Тип],Изчисления!AI$5)*Настройки!K27,"") ->  | AJ24: 0 | AK24: =SUMIFS(Настройки!E27:K27,Изчисления!AC24:AI24,">0") -> 0
C25: =IF(Настройки!C28="","",Настройки!C28) ->  | AC25: =IFERROR(AVERAGEIFS(тблОценкиПредмети[Резултат],тблОценкиПредмети[Предмет],Изчисления!$C25,тблОценкиПредмети[Тип],Изчисления!AC$5)*Настройки!E28,"") ->  | AD25: =IFERROR(AVERAGEIFS(тблОценкиПредмети[Резултат],тблОценкиПредмети[Предмет],Изчисления!$C25,тблОценкиПредмети[Тип],Изчисления!AD$5)*Настройки!F28,"") ->  | AE25: =IFERROR(AVERAGEIFS(тблОценкиПредмети[Резултат],тблОценкиПредмети[Предмет],Изчисления!$C25,тблОценкиПредмети[Тип],Изчисления!AE$5)*Настройки!G28,"") ->  | AF25: =IFERROR(AVERAGEIFS(тблОценкиПредмети[Резултат],тблОценкиПредмети[Предмет],Изчисления!$C25,тблОценкиПредмети[Тип],Изчисления!AF$5)*Настройки!H28,"") ->  | AG25: =IFERROR(AVERAGEIFS(тблОценкиПредмети[Резултат],тблОценкиПредмети[Предмет],Изчисления!$C25,тблОценкиПредмети[Тип],Изчисления!AG$5)*Настройки!I28,"") ->  | AH25: =IFERROR(AVERAGEIFS(тблОценкиПредмети[Резултат],тблОценкиПредмети[Предмет],Изчисления!$C25,тблОценкиПредмети[Тип],Изчисления!AH$5)*Настройки!J28,"") ->  | AI25: =IFERROR(AVERAGEIFS(тблОценкиПредмети[Резултат],тблОценкиПредмети[Предмет],Изчисления!$C25,тблОценкиПредмети[Тип],Изчисления!AI$5)*Настройки!K28,"") ->  | AJ25: 0 | AK25: =SUMIFS(Настройки!E28:K28,Изчисления!AC25:AI25,">0") -> 0
C26: =IF(Настройки!C29="","",Настройки!C29) ->  | AC26: =IFERROR(AVERAGEIFS(тблОценкиПредмети[Резултат],тблОценкиПредмети[Предмет],Изчисления!$C26,тблОценкиПредмети[Тип],Изчисления!AC$5)*Настройки!E29,"") ->  | AD26: =IFERROR(AVERAGEIFS(тблОценкиПредмети[Резултат],тблОценкиПредмети[Предмет],Изчисления!$C26,тблОценкиПредмети[Тип],Изчисления!AD$5)*Настройки!F29,"") ->  | AE26: =IFERROR(AVERAGEIFS(тблОценкиПредмети[Резултат],тблОценкиПредмети[Предмет],Изчисления!$C26,тблОценкиПредмети[Тип],Изчисления!AE$5)*Настройки!G29,"") ->  | AF26: =IFERROR(AVERAGEIFS(тблОценкиПредмети[Резултат],тблОценкиПредмети[Предмет],Изчисления!$C26,тблОценкиПредмети[Тип],Изчисления!AF$5)*Настройки!H29,"") ->  | AG26: =IFERROR(AVERAGEIFS(тблОценкиПредмети[Резултат],тблОценкиПредмети[Предмет],Изчисления!$C26,тблОценкиПредмети[Тип],Изчисления!AG$5)*Настройки!I29,"") ->  | AH26: =IFERROR(AVERAGEIFS(тблОценкиПредмети[Резултат],тблОценкиПредмети[Предмет],Изчисления!$C26,тблОценкиПредмети[Тип],Изчисления!AH$5)*Настройки!J29,"") ->  | AI26: =IFERROR(AVERAGEIFS(тблОценкиПредмети[Резултат],тблОценкиПредмети[Предмет],Изчисления!$C26,тблОценкиПредмети[Тип],Изчисления!AI$5)*Настройки!K29,"") ->  | AJ26: 0 | AK26: =SUMIFS(Настройки!E29:K29,Изчисления!AC26:AI26,">0") -> 0
C27: =IF(Настройки!C30="","",Настройки!C30) ->  | AC27: =IFERROR(AVERAGEIFS(тблОценкиПредмети[Резултат],тблОценкиПредмети[Предмет],Изчисления!$C27,тблОценкиПредмети[Тип],Изчисления!AC$5)*Настройки!E30,"") ->  | AD27: =IFERROR(AVERAGEIFS(тблОценкиПредмети[Резултат],тблОценкиПредмети[Предмет],Изчисления!$C27,тблОценкиПредмети[Тип],Изчисления!AD$5)*Настройки!F30,"") ->  | AE27: =IFERROR(AVERAGEIFS(тблОценкиПредмети[Резултат],тблОценкиПредмети[Предмет],Изчисления!$C27,тблОценкиПредмети[Тип],Изчисления!AE$5)*Настройки!G30,"") ->  | AF27: =IFERROR(AVERAGEIFS(тблОценкиПредмети[Резултат],тблОценкиПредмети[Предмет],Изчисления!$C27,тблОценкиПредмети[Тип],Изчисления!AF$5)*Настройки!H30,"") ->  | AG27: =IFERROR(AVERAGEIFS(тблОценкиПредмети[Резултат],тблОценкиПредмети[Предмет],Изчисления!$C27,тблОценкиПредмети[Тип],Изчисления!AG$5)*Настройки!I30,"") ->  | AH27: =IFERROR(AVERAGEIFS(тблОценкиПредмети[Резултат],тблОценкиПредмети[Предмет],Изчисления!$C27,тблОценкиПредмети[Тип],Изчисления!AH$5)*Настройки!J30,"") ->  | AI27: =IFERROR(AVERAGEIFS(тблОценкиПредмети[Резултат],тблОценкиПредмети[Предмет],Изчисления!$C27,тблОценкиПредмети[Тип],Изчисления!AI$5)*Настройки!K30,"") ->  | AJ27: 0 | AK27: =SUMIFS(Настройки!E30:K30,Изчисления!AC27:AI27,">0") -> 0
C28: =IF(Настройки!C31="","",Настройки!C31) ->  | AC28: =IFERROR(AVERAGEIFS(тблОценкиПредмети[Резултат],тблОценкиПредмети[Предмет],Изчисления!$C28,тблОценкиПредмети[Тип],Изчисления!AC$5)*Настройки!E31,"") ->  | AD28: =IFERROR(AVERAGEIFS(тблОценкиПредмети[Резултат],тблОценкиПредмети[Предмет],Изчисления!$C28,тблОценкиПредмети[Тип],Изчисления!AD$5)*Настройки!F31,"") ->  | AE28: =IFERROR(AVERAGEIFS(тблОценкиПредмети[Резултат],тблОценкиПредмети[Предмет],Изчисления!$C28,тблОценкиПредмети[Тип],Изчисления!AE$5)*Настройки!G31,"") ->  | AF28: =IFERROR(AVERAGEIFS(тблОценкиПредмети[Резултат],тблОценкиПредмети[Предмет],Изчисления!$C28,тблОценкиПредмети[Тип],Изчисления!AF$5)*Настройки!H31,"") ->  | AG28: =IFERROR(AVERAGEIFS(тблОценкиПредмети[Резултат],тблОценкиПредмети[Предмет],Изчисления!$C28,тблОценкиПредмети[Тип],Изчисления!AG$5)*Настройки!I31,"") ->  | AH28: =IFERROR(AVERAGEIFS(тблОценкиПредмети[Резултат],тблОценкиПредмети[Предмет],Изчисления!$C28,тблОценкиПредмети[Тип],Изчисления!AH$5)*Настройки!J31,"") ->  | AI28: =IFERROR(AVERAGEIFS(тблОценкиПредмети[Резултат],тблОценкиПредмети[Предмет],Изчисления!$C28,тблОценкиПредмети[Тип],Изчисления!AI$5)*Настройки!K31,"") ->  | AJ28: 0 | AK28: =SUMIFS(Настройки!E31:K31,Изчисления!AC28:AI28,">0") -> 0
C29: =IF(Настройки!C32="","",Настройки!C32) ->  | AC29: =IFERROR(AVERAGEIFS(тблОценкиПредмети[Резултат],тблОценкиПредмети[Предмет],Изчисления!$C29,тблОценкиПредмети[Тип],Изчисления!AC$5)*Настройки!E32,"") ->  | AD29: =IFERROR(AVERAGEIFS(тблОценкиПредмети[Резултат],тблОценкиПредмети[Предмет],Изчисления!$C29,тблОценкиПредмети[Тип],Изчисления!AD$5)*Настройки!F32,"") ->  | AE29: =IFERROR(AVERAGEIFS(тблОценкиПредмети[Резултат],тблОценкиПредмети[Предмет],Изчисления!$C29,тблОценкиПредмети[Тип],Изчисления!AE$5)*Настройки!G32,"") ->  | AF29: =IFERROR(AVERAGEIFS(тблОценкиПредмети[Резултат],тблОценкиПредмети[Предмет],Изчисления!$C29,тблОценкиПредмети[Тип],Изчисления!AF$5)*Настройки!H32,"") ->  | AG29: =IFERROR(AVERAGEIFS(тблОценкиПредмети[Резултат],тблОценкиПредмети[Предмет],Изчисления!$C29,тблОценкиПредмети[Тип],Изчисления!AG$5)*Настройки!I32,"") ->  | AH29: =IFERROR(AVERAGEIFS(тблОценкиПредмети[Резултат],тблОценкиПредмети[Предмет],Изчисления!$C29,тблОценкиПредмети[Тип],Изчисления!AH$5)*Настройки!J32,"") ->  | AI29: =IFERROR(AVERAGEIFS(тблОценкиПредмети[Резултат],тблОценкиПредмети[Предмет],Изчисления!$C29,тблОценкиПредмети[Тип],Изчисления!AI$5)*Настройки!K32,"") ->  | AJ29: 0 | AK29: =SUMIFS(Настройки!E32:K32,Изчисления!AC29:AI29,">0") -> 0
C30: =IF(Настройки!C33="","",Настройки!C33) ->  | AC30: =IFERROR(AVERAGEIFS(тблОценкиПредмети[Резултат],тблОценкиПредмети[Предмет],Изчисления!$C30,тблОценкиПредмети[Тип],Изчисления!AC$5)*Настройки!E33,"") ->  | AD30: =IFERROR(AVERAGEIFS(тблОценкиПредмети[Резултат],тблОценкиПредмети[Предмет],Изчисления!$C30,тблОценкиПредмети[Тип],Изчисления!AD$5)*Настройки!F33,"") ->  | AE30: =IFERROR(AVERAGEIFS(тблОценкиПредмети[Резултат],тблОценкиПредмети[Предмет],Изчисления!$C30,тблОценкиПредмети[Тип],Изчисления!AE$5)*Настройки!G33,"") ->  | AF30: =IFERROR(AVERAGEIFS(тблОценкиПредмети[Резултат],тблОценкиПредмети[Предмет],Изчисления!$C30,тблОценкиПредмети[Тип],Изчисления!AF$5)*Настройки!H33,"") ->  | AG30: =IFERROR(AVERAGEIFS(тблОценкиПредмети[Резултат],тблОценкиПредмети[Предмет],Изчисления!$C30,тблОценкиПредмети[Тип],Изчисления!AG$5)*Настройки!I33,"") ->  | AH30: =IFERROR(AVERAGEIFS(тблОценкиПредмети[Резултат],тблОценкиПредмети[Предмет],Изчисления!$C30,тблОценкиПредмети[Тип],Изчисления!AH$5)*Настройки!J33,"") ->  | AI30: =IFERROR(AVERAGEIFS(тблОценкиПредмети[Резултат],тблОценкиПредмети[Предмет],Изчисления!$C30,тблОценкиПредмети[Тип],Изчисления!AI$5)*Настройки!K33,"") ->  | AJ30: 0 | AK30: =SUMIFS(Настройки!E33:K33,Изчисления!AC30:AI30,">0") -> 0
B33: 1 | C33: ='Следене на оценките'!C4&COUNTIF('Следене на оценките'!$C$4:C4,'Следене на оценките'!C4) -> Френски1
B34: 2 | C34: ='Следене на оценките'!C5&COUNTIF('Следене на оценките'!$C$4:C5,'Следене на оценките'!C5) -> Разширено програмиране на Java1
B35: 3 | C35: ='Следене на оценките'!C6&COUNTIF('Следене на оценките'!$C$4:C6,'Следене на оценките'!C6) -> Испански1
B36: 4 | C36: ='Следене на оценките'!C7&COUNTIF('Следене на оценките'!$C$4:C7,'Следене на оценките'!C7) -> Теоретична физика1
B37: 5 | C37: ='Следене на оценките'!C8&COUNTIF('Следене на оценките'!$C$4:C8,'Следене на оценките'!C8) -> Френски2
B38: 6 | C38: ='Следене на оценките'!C9&COUNTIF('Следене на оценките'!$C$4:C9,'Следене на оценките'!C9) -> Френски3
B39: 7 | C39: ='Следене на оценките'!C10&COUNTIF('Следене на оценките'!$C$4:C10,'Следене на оценките'!C10) -> Съчинение1
B40: 8 | C40: ='Следене на оценките'!C11&COUNTIF('Следене на оценките'!$C$4:C11,'Следене на оценките'!C11) -> Математика 11
B41: 9 | C41: ='Следене на оценките'!C12&COUNTIF('Следене на оценките'!$C$4:C12,'Следене на оценките'!C12) -> Математика 21
B42: 10 | C42: ='Следене на оценките'!C13&COUNTIF('Следене на оценките'!$C$4:C14,'Следене на оценките'!C13) -> Математика 12
B43: 11 | C43: ='Следене на оценките'!C14&COUNTIF('Следене на оценките'!$C$4:C14,'Следене на оценките'!C14) -> Математика 22
B44: 12 | C44: ='Следене на оценките'!C15&COUNTIF('Следене на оценките'!$C$4:C15,'Следене на оценките'!C15) -> 0
B45: 13 | C45: ='Следене на оценките'!C16&COUNTIF('Следене на оценките'!$C$4:C16,'Следене на оценките'!C16) -> 0
B46: 14 | C46: ='Следене на оценките'!C17&COUNTIF('Следене на оценките'!$C$4:C17,'Следене на оценките'!C17) -> 0
B47: 15 | C47: ='Следене на оценките'!C18&COUNTIF('Следене на оценките'!$C$4:C18,'Следене на оценките'!C18) -> 0
B48: 16 | C48: ='Следене на оценките'!C19&COUNTIF('Следене на оценките'!$C$4:C19,'Следене на оценките'!C19) -> 0
B49: 17 | C49: ='Следене на оценките'!C20&COUNTIF('Следене на оценките'!$C$4:C20,'Следене на оценките'!C20) -> 0
B50: 18 | C50: ='Следене на оценките'!C21&COUNTIF('Следене на оценките'!$C$4:C21,'Следене на оценките'!C21) -> 0
B51: 19 | C51: ='Следене на оценките'!C22&COUNTIF('Следене на оценките'!$C$4:C22,'Следене на оценките'!C22) -> 0
B52: 20 | C52: ='Следене на оценките'!C23&COUNTIF('Следене на оценките'!$C$4:C23,'Следене на оценките'!C23) -> 0
B53: 21 | C53: ='Следене на оценките'!C24&COUNTIF('Следене на оценките'!$C$4:C24,'Следене на оценките'!C24) -> 0
B54: 22 | C54: ='Следене на оценките'!C25&COUNTIF('Следене на оценките'!$C$4:C25,'Следене на оценките'!C25) -> 0
B55: 23 | C55: ='Следене на оценките'!C26&COUNTIF('Следене на оценките'!$C$4:C26,'Следене на оценките'!C26) -> 0
B56: 24 | C56: ='Следене на оценките'!C27&COUNTIF('Следене на оценките'!$C$4:C27,'Следене на оценките'!C27) -> 0
B57: 25 | C57: ='Следене на оценките'!C28&COUNTIF('Следене на оценките'!$C$4:C28,'Следене на оценките'!C28) -> 0
B58: 26 | C58: ='Следене на оценките'!C29&COUNTIF('Следене на оценките'!$C$4:C29,'Следене на оценките'!C29) -> 0
B59: 27 | C59: ='Следене на оценките'!C30&COUNTIF('Следене на оценките'!$C$4:C30,'Следене на оценките'!C30) -> 0
B60: 28 | C60: ='Следене на оценките'!C31&COUNTIF('Следене на оценките'!$C$4:C31,'Следене на оценките'!C31) -> 0
B61: 29 | C61: ='Следене на оценките'!C32&COUNTIF('Следене на оценките'!$C$4:C32,'Следене на оценките'!C32) -> 0
B62: 30 | C62: ='Следене на оценките'!C33&COUNTIF('Следене на оценките'!$C$4:C33,'Следене на оценките'!C33) -> 0
B63: 31 | C63: ='Следене на оценките'!C34&COUNTIF('Следене на оценките'!$C$4:C34,'Следене на оценките'!C34) -> 0
B64: 32 | C64: ='Следене на оценките'!C35&COUNTIF('Следене на оценките'!$C$4:C35,'Следене на оценките'!C35) -> 0
B65: 33 | C65: ='Следене на оценките'!C36&COUNTIF('Следене на оценките'!$C$4:C36,'Следене на оценките'!C36) -> 0
B66: 34 | C66: ='Следене на оценките'!C37&COUNTIF('Следене на оценките'!$C$4:C37,'Следене на оценките'!C37) -> 0
B67: 35 | C67: ='Следене на оценките'!C38&COUNTIF('Следене на оценките'!$C$4:C38,'Следене на оценките'!C38) -> 0
B68: 36 | C68: ='Следене на оценките'!C39&COUNTIF('Следене на оценките'!$C$4:C39,'Следене на оценките'!C39) -> 0
B69: 37 | C69: ='Следене на оценките'!C40&COUNTIF('Следене на оценките'!$C$4:C40,'Следене на оценките'!C40) -> 0
B70: 38 | C70: ='Следене на оценките'!C41&COUNTIF('Следене на оценките'!$C$4:C41,'Следене на оценките'!C41) -> 0
B71: 39 | C71: ='Следене на оценките'!C42&COUNTIF('Следене на оценките'!$C$4:C42,'Следене на оценките'!C42) -> 0
B72: 40 | C72: ='Следене на оценките'!C43&COUNTIF('Следене на оценките'!$C$4:C43,'Следене на оценките'!C43) -> 0
B73: 41 | C73: ='Следене на оценките'!C44&COUNTIF('Следене на оценките'!$C$4:C44,'Следене на оценките'!C44) -> 0
B74: 42 | C74: ='Следене на оценките'!C45&COUNTIF('Следене на оценките'!$C$4:C45,'Следене на оценките'!C45) -> 0
B75: 43 | C75: ='Следене на оценките'!C46&COUNTIF('Следене на оценките'!$C$4:C46,'Следене на оценките'!C46) -> 0
B76: 44 | C76: ='Следене на оценките'!C47&COUNTIF('Следене на оценките'!$C$4:C47,'Следене на оценките'!C47) -> 0
B77: 45 | C77: ='Следене на оценките'!C48&COUNTIF('Следене на оценките'!$C$4:C48,'Следене на оценките'!C48) -> 0
B78: 46 | C78: ='Следене на оценките'!C49&COUNTIF('Следене на оценките'!$C$4:C49,'Следене на оценките'!C49) -> 0
B79: 47 | C79: ='Следене на оценките'!C50&COUNTIF('Следене на оценките'!$C$4:C50,'Следене на оценките'!C50) -> 0
B80: 48 | C80: ='Следене на оценките'!C51&COUNTIF('Следене на оценките'!$C$4:C51,'Следене на оценките'!C51) -> 0
B81: 49 | C81: ='Следене на оценките'!C52&COUNTIF('Следене на оценките'!$C$4:C52,'Следене на оценките'!C52) -> 0
B82: 50 | C82: ='Следене на оценките'!C53&COUNTIF('Следене на оценките'!$C$4:C53,'Следене на оценките'!C53) -> 0
B83: 51 | C83: ='Следене на оценките'!C54&COUNTIF('Следене на оценките'!$C$4:C54,'Следене на оценките'!C54) -> 0
B84: 52 | C84: ='Следене на оценките'!C55&COUNTIF('Следене на оценките'!$C$4:C55,'Следене на оценките'!C55) -> 0
B85: 53 | C85: ='Следене на оценките'!C56&COUNTIF('Следене на оценките'!$C$4:C56,'Следене на оценките'!C56) -> 0
B86: 54 | C86: ='Следене на оценките'!C57&COUNTIF('Следене на оценките'!$C$4:C57,'Следене на оценките'!C57) -> 0
B87: 55 | C87: ='Следене на оценките'!C58&COUNTIF('Следене на оценките'!$C$4:C58,'Следене на оценките'!C58) -> 0
B88: 56 | C88: ='Следене на оценките'!C59&COUNTIF('Следене на оценките'!$C$4:C59,'Следене на оценките'!C59) -> 0
B89: 57 | C89: ='Следене на оценките'!C60&COUNTIF('Следене на оценките'!$C$4:C60,'Следене на оценките'!C60) -> 0
B90: 58 | C90: ='Следене на оценките'!C61&COUNTIF('Следене на оценките'!$C$4:C61,'Следене на оценките'!C61) -> 0
B91: 59 | C91: ='Следене на оценките'!C62&COUNTIF('Следене на оценките'!$C$4:C62,'Следене на оценките'!C62) -> 0
B92: 60 | C92: ='Следене на оценките'!C63&COUNTIF('Следене на оценките'!$C$4:C63,'Следене на оценките'!C63) -> 0
B93: 61 | C93: ='Следене на оценките'!C64&COUNTIF('Следене на оценките'!$C$4:C64,'Следене на оценките'!C64) -> 0
B94: 62 | C94: ='Следене на оценките'!C65&COUNTIF('Следене на оценките'!$C$4:C65,'Следене на оценките'!C65) -> 0
B95: 63 | C95: ='Следене на оценките'!C66&COUNTIF('Следене на оценките'!$C$4:C66,'Следене на оценките'!C66) -> 0
B96: 64 | C96: ='Следене на оценките'!C67&COUNTIF('Следене на оценките'!$C$4:C67,'Следене на оценките'!C67) -> 0
B97: 65 | C97: ='Следене на оценките'!C68&COUNTIF('Следене на оценките'!$C$4:C68,'Следене на оценките'!C68) -> 0
B98: 66 | C98: ='Следене на оценките'!C69&COUNTIF('Следене на оценките'!$C$4:C69,'Следене на оценките'!C69) -> 0
B99: 67 | C99: ='Следене на оценките'!C70&COUNTIF('Следене на оценките'!$C$4:C70,'Следене на оценките'!C70) -> 0
B100: 68 | C100: ='Следене на оценките'!C71&COUNTIF('Следене на оценките'!$C$4:C71,'Следене на оценките'!C71) -> 0
B101: 69 | C101: ='Следене на оценките'!C72&COUNTIF('Следене на оценките'!$C$4:C72,'Следене на оценките'!C72) -> 0
B102: 70 | C102: ='Следене на оценките'!C73&COUNTIF('Следене на оценките'!$C$4:C73,'Следене на оценките'!C73) -> 0
B103: 71 | C103: ='Следене на оценките'!C74&COUNTIF('Следене на оценките'!$C$4:C74,'Следене на оценките'!C74) -> 0
B104: 72 | C104: ='Следене на оценките'!C75&COUNTIF('Следене на оценките'!$C$4:C75,'Следене на оценките'!C75) -> 0
B105: 73 | C105: ='Следене на оценките'!C76&COUNTIF('Следене на оценките'!$C$4:C76,'Следене на оценките'!C76) -> 0
B106: 74 | C106: ='Следене на оценките'!C77&COUNTIF('Следене на оценките'!$C$4:C77,'Следене на оценките'!C77) -> 0
B107: 75 | C107: ='Следене на оценките'!C78&COUNTIF('Следене на оценките'!$C$4:C78,'Следене на оценките'!C78) -> 0
B108: 76 | C108: ='Следене на оценките'!C79&COUNTIF('Следене на оценките'!$C$4:C79,'Следене на оценките'!C79) -> 0
B109: 77 | C109: ='Следене на оценките'!C80&COUNTIF('Следене на оценките'!$C$4:C80,'Следене на оценките'!C80) -> 0
B110: 78 | C110: ='Следене на оценките'!C81&COUNTIF('Следене на оценките'!$C$4:C81,'Следене на оценките'!C81) -> 0
B111: 79 | C111: ='Следене на оценките'!C82&COUNTIF('Следене на оценките'!$C$4:C82,'Следене на оценките'!C82) -> 0
B112: 80 | C112: ='Следене на оценките'!C83&COUNTIF('Следене на оценките'!$C$4:C83,'Следене на оценките'!C83) -> 0
B113: 81 | C113: ='Следене на оценките'!C84&COUNTIF('Следене на оценките'!$C$4:C84,'Следене на оценките'!C84) -> 0
B114: 82 | C114: ='Следене на оценките'!C85&COUNTIF('Следене на оценките'!$C$4:C85,'Следене на оценките'!C85) -> 0
B115: 83 | C115: ='Следене на оценките'!C86&COUNTIF('Следене на оценките'!$C$4:C86,'Следене на оценките'!C86) -> 0
B116: 84 | C116: ='Следене на оценките'!C87&COUNTIF('Следене на оценките'!$C$4:C87,'Следене на оценките'!C87) -> 0
B117: 85 | C117: ='Следене на оценките'!C88&COUNTIF('Следене на оценките'!$C$4:C88,'Следене на оценките'!C88) -> 0
B118: 86 | C118: ='Следене на оценките'!C89&COUNTIF('Следене на оценките'!$C$4:C89,'Следене на оценките'!C89) -> 0
B119: 87 | C119: ='Следене на оценките'!C90&COUNTIF('Следене на оценките'!$C$4:C90,'Следене на оценките'!C90) -> 0
B120: 88 | C120: ='Следене на оценките'!C91&COUNTIF('Следене на оценките'!$C$4:C91,'Следене на оценките'!C91) -> 0
B121: 89 | C121: ='Следене на оценките'!C92&COUNTIF('Следене на оценките'!$C$4:C92,'Следене на оценките'!C92) -> 0
B122: 90 | C122: ='Следене на оценките'!C93&COUNTIF('Следене на оценките'!$C$4:C93,'Следене на оценките'!C93) -> 0
B123: 91 | C123: ='Следене на оценките'!C94&COUNTIF('Следене на оценките'!$C$4:C94,'Следене на оценките'!C94) -> 0
B124: 92 | C124: ='Следене на оценките'!C95&COUNTIF('Следене на оценките'!$C$4:C95,'Следене на оценките'!C95) -> 0
B125: 93 | C125: ='Следене на оценките'!C96&COUNTIF('Следене на оценките'!$C$4:C96,'Следене на оценките'!C96) -> 0
B126: 94 | C126: ='Следене на оценките'!C97&COUNTIF('Следене на оценките'!$C$4:C97,'Следене на оценките'!C97) -> 0
B127: 95 | C127: ='Следене на оценките'!C98&COUNTIF('Следене на оценките'!$C$4:C98,'Следене на оценките'!C98) -> 0
B128: 96 | C128: ='Следене на оценките'!C99&COUNTIF('Следене на оценките'!$C$4:C99,'Следене на оценките'!C99) -> 0
B129: 97 | C129: ='Следене на оценките'!C100&COUNTIF('Следене на оценките'!$C$4:C100,'Следене на оценките'!C100) -> 0
B130: 98 | C130: ='Следене на оценките'!C101&COUNTIF('Следене на оценките'!$C$4:C101,'Следене на оценките'!C101) -> 0
B131: 99 | C131: ='Следене на оценките'!C102&COUNTIF('Следене на оценките'!$C$4:C102,'Следене на оценките'!C102) -> 0
B132: 100 | C132: ='Следене на оценките'!C103&COUNTIF('Следене на оценките'!$C$4:C103,'Следене на оценките'!C103) -> 0
B133: 101 | C133: ='Следене на оценките'!C104&COUNTIF('Следене на оценките'!$C$4:C104,'Следене на оценките'!C104) -> 0
B134: 102 | C134: ='Следене на оценките'!C105&COUNTIF('Следене на оценките'!$C$4:C105,'Следене на оценките'!C105) -> 0
B135: 103 | C135: ='Следене на оценките'!C106&COUNTIF('Следене на оценките'!$C$4:C106,'Следене на оценките'!C106) -> 0
B136: 104 | C136: ='Следене на оценките'!C107&COUNTIF('Следене на оценките'!$C$4:C107,'Следене на оценките'!C107) -> 0
B137: 105 | C137: ='Следене на оценките'!C108&COUNTIF('Следене на оценките'!$C$4:C108,'Следене на оценките'!C108) -> 0
B138: 106 | C138: ='Следене на оценките'!C109&COUNTIF('Следене на оценките'!$C$4:C109,'Следене на оценките'!C109) -> 0
B139: 107 | C139: ='Следене на оценките'!C110&COUNTIF('Следене на оценките'!$C$4:C110,'Следене на оценките'!C110) -> 0
B140: 108 | C140: ='Следене на оценките'!C111&COUNTIF('Следене на оценките'!$C$4:C111,'Следене на оценките'!C111) -> 0
B141: 109 | C141: ='Следене на оценките'!C112&COUNTIF('Следене на оценките'!$C$4:C112,'Следене на оценките'!C112) -> 0
B142: 110 | C142: ='Следене на оценките'!C113&COUNTIF('Следене на оценките'!$C$4:C113,'Следене на оценките'!C113) -> 0
B143: 111 | C143: ='Следене на оценките'!C114&COUNTIF('Следене на оценките'!$C$4:C114,'Следене на оценките'!C114) -> 0
B144: 112 | C144: ='Следене на оценките'!C115&COUNTIF('Следене на оценките'!$C$4:C115,'Следене на оценките'!C115) -> 0
B145: 113 | C145: ='Следене на оценките'!C116&COUNTIF('Следене на оценките'!$C$4:C116,'Следене на оценките'!C116) -> 0
B146: 114 | C146: ='Следене на оценките'!C117&COUNTIF('Следене на оценките'!$C$4:C117,'Следене на оценките'!C117) -> 0
B147: 115 | C147: ='Следене на оценките'!C118&COUNTIF('Следене на оценките'!$C$4:C118,'Следене на оценките'!C118) -> 0
B148: 116 | C148: ='Следене на оценките'!C119&COUNTIF('Следене на оценките'!$C$4:C119,'Следене на оценките'!C119) -> 0
B149: 117 | C149: ='Следене на оценките'!C120&COUNTIF('Следене на оценките'!$C$4:C120,'Следене на оценките'!C120) -> 0
B150: 118 | C150: ='Следене на оценките'!C121&COUNTIF('Следене на оценките'!$C$4:C121,'Следене на оценките'!C121) -> 0
B151: 119 | C151: ='Следене на оценките'!C122&COUNTIF('Следене на оценките'!$C$4:C122,'Следене на оценките'!C122) -> 0
B152: 120 | C152: ='Следене на оценките'!C123&COUNTIF('Следене на оценките'!$C$4:C123,'Следене на оценките'!C123) -> 0
B153: 121 | C153: ='Следене на оценките'!C124&COUNTIF('Следене на оценките'!$C$4:C124,'Следене на оценките'!C124) -> 0
B154: 122 | C154: ='Следене на оценките'!C125&COUNTIF('Следене на оценките'!$C$4:C125,'Следене на оценките'!C125) -> 0
B155: 123 | C155: ='Следене на оценките'!C126&COUNTIF('Следене на оценките'!$C$4:C126,'Следене на оценките'!C126) -> 0
B156: 124 | C156: ='Следене на оценките'!C127&COUNTIF('Следене на оценките'!$C$4:C127,'Следене на оценките'!C127) -> 0
B157: 125 | C157: ='Следене на оценките'!C128&COUNTIF('Следене на оценките'!$C$4:C128,'Следене на оценките'!C128) -> 0
B158: 126 | C158: ='Следене на оценките'!C129&COUNTIF('Следене на оценките'!$C$4:C129,'Следене на оценките'!C129) -> 0
B159: 127 | C159: ='Следене на оценките'!C130&COUNTIF('Следене на оценките'!$C$4:C130,'Следене на оценките'!C130) -> 0
B160: 128 | C160: ='Следене на оценките'!C131&COUNTIF('Следене на оценките'!$C$4:C131,'Следене на оценките'!C131) -> 0
B161: 129 | C161: ='Следене на оценките'!C132&COUNTIF('Следене на оценките'!$C$4:C132,'Следене на оценките'!C132) -> 0
B162: 130 | C162: ='Следене на оценките'!C133&COUNTIF('Следене на оценките'!$C$4:C133,'Следене на оценките'!C133) -> 0
B163: 131 | C163: ='Следене на оценките'!C134&COUNTIF('Следене на оценките'!$C$4:C134,'Следене на оценките'!C134) -> 0
B164: 132 | C164: ='Следене на оценките'!C135&COUNTIF('Следене на оценките'!$C$4:C135,'Следене на оценките'!C135) -> 0
B165: 133 | C165: ='Следене на оценките'!C136&COUNTIF('Следене на оценките'!$C$4:C136,'Следене на оценките'!C136) -> 0
B166: 134 | C166: ='Следене на оценките'!C137&COUNTIF('Следене на оценките'!$C$4:C137,'Следене на оценките'!C137) -> 0
B167: 135 | C167: ='Следене на оценките'!C138&COUNTIF('Следене на оценките'!$C$4:C138,'Следене на оценките'!C138) -> 0
B168: 136 | C168: ='Следене на оценките'!C139&COUNTIF('Следене на оценките'!$C$4:C139,'Следене на оценките'!C139) -> 0
B169: 137 | C169: ='Следене на оценките'!C140&COUNTIF('Следене на оценките'!$C$4:C140,'Следене на оценките'!C140) -> 0
B170: 138 | C170: ='Следене на оценките'!C141&COUNTIF('Следене на оценките'!$C$4:C141,'Следене на оценките'!C141) -> 0
B171: 139 | C171: ='Следене на оценките'!C142&COUNTIF('Следене на оценките'!$C$4:C142,'Следене на оценките'!C142) -> 0
B172: 140 | C172: ='Следене на оценките'!C143&COUNTIF('Следене на оценките'!$C$4:C143,'Следене на оценките'!C143) -> 0
B173: 141 | C173: ='Следене на оценките'!C144&COUNTIF('Следене на оценките'!$C$4:C144,'Следене на оценките'!C144) -> 0
B174: 142 | C174: ='Следене на оценките'!C145&COUNTIF('Следене на оценките'!$C$4:C145,'Следене на оценките'!C145) -> 0
B175: 143 | C175: ='Следене на оценките'!C146&COUNTIF('Следене на оценките'!$C$4:C146,'Следене на оценките'!C146) -> 0
B176: 144 | C176: ='Следене на оценките'!C147&COUNTIF('Следене на оценките'!$C$4:C147,'Следене на оценките'!C147) -> 0
B177: 145 | C177: ='Следене на оценките'!C148&COUNTIF('Следене на оценките'!$C$4:C148,'Следене на оценките'!C148) -> 0
B178: 146 | C178: ='Следене на оценките'!C149&COUNTIF('Следене на оценките'!$C$4:C149,'Следене на оценките'!C149) -> 0
B179: 147 | C179: ='Следене на оценките'!C150&COUNTIF('Следене на оценките'!$C$4:C150,'Следене на оценките'!C150) -> 0
B180: 148 | C180: ='Следене на оценките'!C151&COUNTIF('Следене на оценките'!$C$4:C151,'Следене на оценките'!C151) -> 0
B181: 149 | C181: ='Следене на оценките'!C152&COUNTIF('Следене на оценките'!$C$4:C152,'Следене на оценките'!C152) -> 0
B182: 150 | C182: ='Следене на оценките'!C153&COUNTIF('Следене на оценките'!$C$4:C153,'Следене на оценките'!C153) -> 0
B183: 151 | C183: ='Следене на оценките'!C154&COUNTIF('Следене на оценките'!$C$4:C154,'Следене на оценките'!C154) -> 0
B184: 152 | C184: ='Следене на оценките'!C155&COUNTIF('Следене на оценките'!$C$4:C155,'Следене на оценките'!C155) -> 0
B185: 153 | C185: ='Следене на оценките'!C156&COUNTIF('Следене на оценките'!$C$4:C156,'Следене на оценките'!C156) -> 0
B186: 154 | C186: ='Следене на оценките'!C157&COUNTIF('Следене на оценките'!$C$4:C157,'Следене на оценките'!C157) -> 0
B187: 155 | C187: ='Следене на оценките'!C158&COUNTIF('Следене на оценките'!$C$4:C158,'Следене на оценките'!C158) -> 0
B188: 156 | C188: ='Следене на оценките'!C159&COUNTIF('Следене на оценките'!$C$4:C159,'Следене на оценките'!C159) -> 0
B189: 157 | C189: ='Следене на оценките'!C160&COUNTIF('Следене на оценките'!$C$4:C160,'Следене на оценките'!C160) -> 0
B190: 158 | C190: ='Следене на оценките'!C161&COUNTIF('Следене на оценките'!$C$4:C161,'Следене на оценките'!C161) -> 0
B191: 159 | C191: ='Следене на оценките'!C162&COUNTIF('Следене на оценките'!$C$4:C162,'Следене на оценките'!C162) -> 0
B192: 160 | C192: ='Следене на оценките'!C163&COUNTIF('Следене на оценките'!$C$4:C163,'Следене на оценките'!C163) -> 0
B193: 161 | C193: ='Следене на оценките'!C164&COUNTIF('Следене на оценките'!$C$4:C164,'Следене на оценките'!C164) -> 0
B194: 162 | C194: ='Следене на оценките'!C165&COUNTIF('Следене на оценките'!$C$4:C165,'Следене на оценките'!C165) -> 0
B195: 163 | C195: ='Следене на оценките'!C166&COUNTIF('Следене на оценките'!$C$4:C166,'Следене на оценките'!C166) -> 0
B196: 164 | C196: ='Следене на оценките'!C167&COUNTIF('Следене на оценките'!$C$4:C167,'Следене на оценките'!C167) -> 0
B197: 165 | C197: ='Следене на оценките'!C168&COUNTIF('Следене на оценките'!$C$4:C168,'Следене на оценките'!C168) -> 0
B198: 166 | C198: ='Следене на оценките'!C169&COUNTIF('Следене на оценките'!$C$4:C169,'Следене на оценките'!C169) -> 0
B199: 167 | C199: ='Следене на оценките'!C170&COUNTIF('Следене на оценките'!$C$4:C170,'Следене на оценките'!C170) -> 0
B200: 168 | C200: ='Следене на оценките'!C171&COUNTIF('Следене на оценките'!$C$4:C171,'Следене на оценките'!C171) -> 0
B201: 169 | C201: ='Следене на оценките'!C172&COUNTIF('Следене на оценките'!$C$4:C172,'Следене на оценките'!C172) -> 0
B202: 170 | C202: ='Следене на оценките'!C173&COUNTIF('Следене на оценките'!$C$4:C173,'Следене на оценките'!C173) -> 0
B203: 171 | C203: ='Следене на оценките'!C174&COUNTIF('Следене на оценките'!$C$4:C174,'Следене на оценките'!C174) -> 0
... 454 more rows
